Cogmind - Beta 11.1 @@@ ROGUE MODE // 2022.09.23 @ 18:12:21 Player: deadnoob Result: Core destroyed Performance ------------- Evolutions (0) 0 Regions Visited (2) 400 Robots Destroyed (7) 35 Value Destroyed (206) 206 Prototype IDs (0) 0 Alien Tech Used (0) 0 Bonus (0) 0 TOTAL SCORE: 641 Bonus ------- None Cogmind --------- Core Integrity 0/250 Matter 300/300 Energy 100/100 System Corruption 0% Temperature Cool (25) Movement Core (200) Ox3 Location -10/Mines Parts ------- > --- POWER (1) -------- (None) > --- PROPULSION (2) --- Wheel > --- UTILITY (2) ------ Medium Storage Unit > --- WEAPON (2) ------- (None) > --- INVENTORY (10) --- Light Ion Engine Light Treads Light Treads Small Storage Unit Small Laser Small Laser Light Assault Rifle Mining Claw Peak State ------------ > --- POWER ------------ Ion Engine > --- PROPULSION ------- Aluminum Leg Aluminum Leg > --- UTILITY ---------- Heat Sink Medium Storage Unit > --- WEAPON ----------- Small Laser Small Laser > --- INVENTORY -------- Light Ion Engine Light Treads Light Treads Wheel Wheel Small Storage Unit EM Pulse Gun Light Assault Rifle Welding Torch Mining Claw [Rating: 8] Favorites ----------- Power Ion Engine Engine Ion Engine Propulsion Aluminum Leg Leg Aluminum Leg Wheel Wheel Utility Heat Sink Device Heat Sink Storage Medium Storage Unit Weapon Small Laser Energy Gun Small Laser Ballistic Gun Light Assault Rifle Slashing Weapon Mining Claw Build | -11 -10 -10 ------- Run | Scr Mat Min Slots Evolved . | . . . Power . | . . . Propulsion . | . . . Utility . | . . . Weapon . | . . . Parts Attached 9 | 1 5 3 Power 1 | . 1 . Engine 1 | . 1 . Core . | . . . Reactor . | . . . Propulsion 1 | . . 1 Treads . | . . . Leg . | . . . Wheel 1 | . . 1 Hover . | . . . Flight . | . . . Utility 2 | . 2 . Device 1 | . 1 . Storage 1 | . 1 . Processor . | . . . Hackware . | . . . Protection . | . . . Artifact . | . . . Weapon 5 | 1 2 2 Energy Gun 3 | . 2 1 Energy Cannon . | . . . Ballistic Gun 1 | 1 . . Ballistic Cannon . | . . . Launcher . | . . . Special Weapon . | . . . Impact Weapon . | . . . Slashing Weapon 1 | . . 1 Piercing Weapon . | . . . Special Melee Weapon . | . . . Unidentified Prototypes . | . . . Parts Lost 6 | . . 6 Power 1 | . . 1 Propulsion 2 | . . 2 Utility 1 | . . 1 Weapon 2 | . . 2 Highest Loss Streak 6 | . . 6 To Critical Strikes . | . . . Average Slot Usage (%) 99 | . 96 99 Engine 14 | . 14 14 Leg 27 | . 28 27 Device 13 | . 10 14 Storage 14 | . 14 14 Energy Gun 15 | . 24 14 Slashing Weapon 12 | . . 13 Naked Turns . | . . . Heaviest Build 19 | 12 18 19 Greatest Support 20 | 20 20 20 Greatest Overweight (x) . | . . . Average Overweight (x) . | . . . Largest Inventory Capacity 10 | 8 10 10 Average Capacity 9 | 8 9 10 Most Carried 10 | 6 10 9 Average Carried 8 | 6 8 8 Final Capacity 10 | 8 10 10 Final Carried 9 | 6 9 8 Class Distribution -------------------- 96% | Scavenger-Mutant 3% | Mutant Dominant Class ---------------- Mutant | -10/Materials Scavenger-Mutant | -10/Mines Resources | -11 -10 -10 ----------- Run | Scr Mat Min Matter Collected 267 | 200 67 . Remotely . | . . . Salvage Created 329 | . 309 20 Parts 17 | . 17 . Haulers Intercepted 1 | . 1 . Recyclers Shooed 1 | . 1 . Parts Field Recycled . | . . . Retrieved Matter . | . . . Parts Self-Destructed . | . . . Prevented . | . . . Kills | -11 -10 -10 ------- Run | Scr Mat Min Combat Hostiles Destroyed 7 | . 6 1 Melee 1 | . . 1 Guns 6 | . 6 . Classes Destroyed 3 | . 2 1 Hauler 1 | . 1 . Grunt 6 | . 6 . Assembled 1 | . . 1 Best Kill Streak 3 | . 3 1 Combat Bots Only 3 | . 3 1 Max Kills in Single Turn 1 | . 1 1 Gunslinging . | . . . Exploded . | . . . Melee 1 | . . 1 Uniques/NPCs Destroyed . | . . . Combat | -11 -10 -10 -------- Run | Scr Mat Min Damage Taken 773 | . 143 630 Core 252 | . 42 210 Absorbed by Shields . | . . . Core Remaining (%) 100 | 100 . . Volleys Fired 21 | . 20 1 Largest 2 | . 2 1 Hottest 80 | . 80 40 Shots Fired 41 | . 40 1 Gun 41 | . 40 1 Cannon . | . . . Launcher . | . . . Special . | . . . Kinetic 7 | . 7 . Thermal 34 | . 33 1 Explosive . | . . . Electromagnetic . | . . . Robot Hit Streak 14 | . 14 . Robot Miss Streak 3 | . 3 . Penetration Max . | . . . Secondary Targets . | . . . Shots Hit Robots 29 | . 28 1 Core Hits 16 | . 15 1 Critical Kills . | . . . Critical Parts Destroyed . | . . . Critical Strikes . | . . . Melee Attacks 16 | . . 16 Impact . | . . . Slashing 16 | . . 16 Piercing . | . . . Sneak Attacks . | . . . Combat Hostiles . | . . . Follow-up Attacks . | . . . Damage Inflicted 353 | . 311 42 Guns 311 | . 311 . Cannons . | . . . Explosions . | . . . Melee 31 | . . 31 Ramming 11 | . . 11 Kinetic 34 | . 34 . Thermal 277 | . 277 . Explosive . | . . . Electromagnetic . | . . . Impact . | . . . Slashing 31 | . . 31 Piercing . | . . . Highest Corruption . | . . . Average Corruption . | . . . Corruption Purged . | . . . Corruption Blocked . | . . . Overload Shots . | . . . Overflow Damage . | . . . Projectiles . | . . . Explosions . | . . . Melee . | . . . Knockbacks . | . . . Impact . | . . . Kinetic . | . . . Secondary . | . . . Self-Inflicted Damage . | . . . Shots . | . . . Rammed 2 | . . 2 Targets Rammed 7 | . . 7 Kicked 5 | . . 5 Crushed . | . . . Highest Temperature 70 | . 70 26 Average Temperature 22 | . 23 22 Received Heat Transfer 430 | . 66 364 Siege Activations . | . . . Robots Corrupted . | . . . Combat Hostiles . | . . . Parts Fried . | . . . Impact Corruptions . | . . . Robots Melted . | . . . Combat Hostiles . | . . . Parts Melted . | . . . Heat Transferred 625 | . 625 . Parts Sabotaged . | . . . Parts Stolen . | . . . Parts Stripped . | . . . Power Chain Reactions . | . . . Missiles Intercepted . | . . . Alert | -11 -10 -10 ------- Run | Scr Mat Min Peak Influence 197 | . 197 94 Initial 76 | . . 76 Average 20 | . 108 12 Maximum Alert Level . | . . . Low Security (%) 100 | 100 100 100 Level 1 . | . . . Level 2 . | . . . Level 3 . | . . . Level 4 . | . . . Level 5 . | . . . High Security . | . . . Max Security . | . . . Squads Dispatched 1 | . 1 . Investigation . | . . . Extermination . | . . . Reinforcement 1 | . 1 . Assault . | . . . Garrison . | . . . Intercept . | . . . Searches Triggered . | . . . Construction Impeded . | . . . Haulers Reinforced . | . . . Active Scanning Responses . | . . . Cargo Convoy Interrupts . | . . . Stealth | -11 -10 -10 --------- Run | Scr Mat Min Distress Signals 4 | . 3 1 Communications Jammed . | . . . Distress Signals . | . . . Times Spotted 33 | . 14 19 Peak Tracking Total 18 | . 5 18 Tactical Retreats 1 | . 1 . Traps | -11 -10 -10 ------- Run | Scr Mat Min Traps Triggered . | . . . Indirectly . | . . . Trap Hack Attempts . | . . . Triggered . | . . . Disarmed . | . . . Reprogrammed . | . . . Reused . | . . . Traps Extracted . | . . . Installed . | . . . Triggered . | . . . Machines | -11 -10 -10 ---------- Run | Scr Mat Min Machines Disabled . | . . . Max in Single Turn . | . . . Machines Sabotaged . | . . . Garrisons Compromised . | . . . Overloaded Fab Kills . | . . . Hacking | -11 -10 -10 --------- Run | Scr Mat Min Machines Accessed . | . . . Terminals . | . . . Fabricators . | . . . Repair Stations . | . . . Recycling Units . | . . . Scanalyzers . | . . . Garrison Access . | . . . Total Hacks . | . . . Successful . | . . . Failed . | . . . Catastrophic . | . . . Database Lockouts . | . . . Manual . | . . . Terminals . | . . . Fabricators . | . . . Repair Stations . | . . . Recycling Units . | . . . Scanalyzers . | . . . Garrison Access . | . . . Terminal Hacks . | . . . Fabricator Hacks . | . . . Repair Station Hacks . | . . . Recycling Unit Hacks . | . . . Scanalyzer . | . . . Garrison Access Hacks . | . . . Unauthorized Hacks . | . . . Terminals . | . . . Fabricators . | . . . Repair Stations . | . . . Recycling Units . | . . . Scanalyzers . | . . . Garrison Access . | . . . Data Cores Recovered . | . . . Used . | . . . Hacking Detections . | . . . Full Trace Events . | . . . Feedback Events . | . . . Feedback Blocked . | . . . Robot Schematics Acquired . | . . . Robots Built . | . . . Authchips . | . . . Time . | . . . Total Robot Build Rating . | . . . Part Schematics Acquired . | . . . Parts Built . | . . . Authchips . | . . . Time . | . . . Total Part Build Rating . | . . . Parts Repaired . | . . . Time . | . . . Parts Recycled . | . . . Recycled Matter . | . . . Retrieved Matter . | . . . Retrieved Components . | . . . Parts Scanalyzed . | . . . Part Schematics Acquired . | . . . Parts Damaged . | . . . Bothacking | -11 -10 -10 ------------ Run | Scr Mat Min Used RIF Installer . | . . . Robots Hacked . | . . . Non-combat . | . . . Combat . | . . . Robot Hacks Applied . | . . . Relay Couplers Released . | . . . Fabnet Peak Effective % . | . . . Robots Rewired . | . . . Allies Hacked . | . . . Hacks Repelled . | . . . Allies | -11 -10 -10 -------- Run | Scr Mat Min Total Allies . | . . . Largest Group . | . . . Highest-Rated Group . | . . . Highest-Rated Ally . | . . . Total Orders . | . . . Ally Attacks . | . . . Total Damage . | . . . Kills . | . . . Allies Corrupted . | . . . Allies Melted . | . . . Intel | -11 -10 -10 ------- Run | Scr Mat Min Robot Analysis Total . | . . . Derelict Logs Recovered 1 | . . 1 Drone Launches . | . . . Drone Recoveries . | . . . Exploration | -11 -10 -10 ------------- Run | Scr Mat Min Turns Passed 3004 | 2 234 2768 Spaces Moved 225 | 1 111 113 Core . | . . . Treads . | . . . Legs 225 | 1 111 113 Wheels . | . . . Hover . | . . . Flight . | . . . Fastest Speed 120 | 120 120 120 Average Speed 120 | 120 120 120 Slowest Speed 120 | 120 120 120 Overloaded Moves . | . . . Propulsion Burnouts . | . . . Robots Hopped . | . . . Cave-ins Triggered . | . . . Exploration Rate (%) 21 | 2 26 37 Regions Visited 2 Branch Regions 1 Pre-discovered Areas 1 | . . 1 Known Exits Taken . | . . . Unknown Exits Taken 2 | 1 1 . Scrap Searched 1 | . . 1 Spaces Dug 3 | . . 3 Terrain Destroyed 3 | . . 3 Melee 3 | . . 3 Projectile . | . . . AOE . | . . . Terrain Rammed . | . . . Walls Destroyed . | . . . Machines Disabled . | . . . Actions | -11 -10 -10 --------- Run | Scr Mat Min Total 2884 | 1 174 2709 Wait 2599 | . 31 2568 Move 223 | . 110 113 Hop . | . . . Pick Up 3 | . 3 . Fast Attach 3 | . 2 1 Attach 1 | . . 1 Detach 2 | . 1 1 Swap 5 | 1 3 1 Drop 5 | . 4 1 Fire 21 | . 20 1 Melee 16 | . . 16 Ram 1 | . . 1 Kick 5 | . . 5 Crush . | . . . Escape Stasis . | . . . Rewire . | . . . Trap . | . . . Miscellaneous . | . . . Route ------- -11/Scrapyard -10/Materials (discovered 2 exits: [*Min x2]) -10/Mines History --------- Turn | Location | Event 3 | -11/Scrapyard | Discovered new exit (range 0) 3 | -11/Scrapyard | Entered Materials 3 | -10/Materials | Discovered new exit (range 8) 203 | -10/Materials | Discovered new exit (range 11) 237 | -10/Materials | Entered Mines 238 | -10/Mines | Learned location of Storage (-8) 249 | -10/Mines | Learned 2 Materials zone layouts 360 | -10/Mines | Excavation squad dispatched 360 | -10/Mines | A large section of the Mines collapsed 421 | -10/Mines | Build established: Scavenger-Mutant 610 | -10/Mines | Excavation squad dispatched 860 | -10/Mines | Excavation squad dispatched 1110 | -10/Mines | Excavation squad dispatched 1360 | -10/Mines | Excavation squad dispatched 1610 | -10/Mines | Excavation squad dispatched 1860 | -10/Mines | Excavation squad dispatched 2110 | -10/Mines | Excavation squad dispatched 2360 | -10/Mines | Excavation squad dispatched 2610 | -10/Mines | Excavation squad dispatched 2860 | -10/Mines | Excavation squad dispatched 3000 | -10/Mines | Core integrity fell below 50% 3005 | -10/Mines | Core integrity fell below 20% 3005 | -10/Mines | Core destroyed Last Messages --------------- escorted excavation squad. 02360_ ALERT: Derelict activity in mines confirmed. Dispatching additional escorted excavation squad. 02610_ ALERT: Derelict activity in mines confirmed. Dispatching additional escorted excavation squad. 02860_ ALERT: Derelict activity in mines confirmed. Dispatching additional escorted excavation squad. 02988_ The unstable cave ceiling collapses. 02992_ T-07 Excavator destroyed. 02995_ EM Pulse Gun destroyed. 02995_ Kicked G-34 Mercenary. 02999_ Kicked G-34 Mercenary out of the way. 02999_ Sml. Laser destroyed. 02999_ Aluminum Leg destroyed. 03000_ Kicked G-34 Mercenary. 03001_ Heat Sink destroyed. 03002_ Aluminum Leg destroyed. 03002_ Ion Engine destroyed. 03003_ Slammed into G-34 Mercenary. 03005_ Destabilizing: Core damaged (-12). Map ----- +----------------------------------------------------+ | | | | | ?????????????????????????????????????????????????? | | ?????????????????????????????????????????????????? | | ?????????????????????????????????????????????????? | | ?????????????????????????????????????????????????? | | ?????????????????????????????????????????????????? | | ?????????????????????????????????????????????????? | | ?????????????????????????????????????????????????? | | ????????????#####????????????????????????????????? | | ?????#####?## ##??####?????????????????????????? | | ?##### ### #### ##????????????????????????? | | ## ## ##??????#????????????????? | | g ##???? #????????????????? | | #??? ?????????????????? | | #### #### #??? ###???????????????? | | ##??## ##??## ##?? ????????????????? | | #????# ##???## ##???% #?????????????????? | | # #???## ##???# ##???# ##????????????????? | | # ##??# ##??# ##### ##???????????????? | | # ### ##?# ## #???????????????? | | # #?## ##??????????????? | | ## #??##### ttg #??????????????? | | ?# # ##??????## g #??????????????? | | ?# ## ##????????##gg g ##??????????????? | | ?# ### ####??????????#@gg tt ##???????????????? | | ?# #?#####????????###?##gg%## ##????????????????? | | ?# #??????????????#####ggg##??#?????????????????? | | ?# #??????????######"#|ggg##????????????????????? | | ## #?????????## % % *k ## #?????????????????? | | # ###???????#! |%!|=g " ???????????? | | ##??#" ""%[ % g% #??????????? | | #??# ### % t! t ;###### ???????????? | | #??????## *"### ; #???????????????????? | | ##???????## ##??# ;; #???????????????????? | | ###?????????###????## ##???????????????????? | | ##????????????????????####????????????????????? | | ##????????????????????????????????????????????? | | ####??#??????????????????????????????????????? | | # ## #??????????????????????????????????????? | | ## # ######?????????????????????????????????? | | ?# #?????????????????????????????????? | | ## #?????????????????????????????????? | | # #### #????????????????????????????????? | | ##????? #????????????????????????????????? | | """" ##?????????????????????????????????????????? | | """" #??????????????????????????????????????????? | | """" #??????????????????????????????????????????? | | #??????????????????????????????????????????? | | ##??????????????????????????????????????????? | +----------------------------------------------------+ Best States ------------- Heat Dissipation 35 Energy Generation 10 Energy Capacity 250 Matter Stores 300 Matter Capacity 300 Sight Range 16 Terrain Scan Density 10 Evasion (%) 55 Item Schematics ----------------- None Robot Schematics ------------------ None Fabricated ------------ Nothing Alien Tech Used ----------------- None Achievements -------------- None Challenges ------------ None Game ------ Seed SalvageSkeletonField Manual? 0 Play Time 00:07:47 Cumulative 92.7 hours Start 2022.09.23 @ 18:05:12 End 2022.09.23 @ 18:12:21 Sessions 1 Manual Loads 0 Difficulty Rogue Special Mode None Game No. 133 Rogue 133 Adventurer 0 Explorer 0 Win Type - Total 1 Types 1/0/0/0/0/0/0/0/0 Lore% 61 Gallery% 63 Achievement% 50 Wizard Run 0 Options --------- ASCII 0 Keyboard 0 Movement Numpad Keybinds 0 Fullscreen 2 Font 18/SmallcapsGlow Map View 76x50 Tactical HUD 1 Map Filters NONE Filters NONE Steam 1 RUN: af5ae2dd-a681-4168-8cac-f0aeaa559f8c